fUST/lending_fUST_20250413
["ID","MTS","AMOUNT","RATE_DAILY","PERIOD"]
[357858017,1744476633351,-630.52312818,0.00024873,2]
[357858018,1744476633361,-500.0,0.00024873,2]
[357858019,1744476633371,-180.13329864,0.00024899,2]
[357858020,1744476633383,-176.06663849,0.00024899,2]
[357858021,1744476633393,-6771.63505634,0.000249,2]
[357858022,1744476633404,-1007.85706992,0.000249,3]
[357858023,1744476633415,-151.0,0.000249,7]
[357858024,1744476633426,-216.463251,0.000249,7]
[357858025,1744476633436,-211.710977,0.000249,7]
[357858026,1744476633446,-191.378,0.000249,8]
[357858027,1744476633458,-151.0,0.000249,7]
[357858028,1744476633468,-151.0,0.000249,7]
[357858029,1744476633479,-151.0,0.000249,7]
[357858030,1744476633489,-151.0,0.000249,7]
[357858031,1744476633499,-51255.11217291,0.000249,2]
[357858032,1744476633891,-151.0,0.00023577,2]
[357858033,1744476633918,-19.20622126,0.00023577,2]
[357858047,1744476638311,-131.79377874,0.00023577,2]
[357858049,1744476638322,-151.0,0.00023577,2]
[357858051,1744476638331,-151.0,0.00023577,2]
[357858053,1744476638341,-151.0,0.00023577,2]
[357858055,1744476638351,-151.0,0.00023577,2]
[357858057,1744476638361,-151.0,0.00023577,2]
[357858059,1744476638370,-151.0,0.00023577,2]
[357858061,1744476638380,-977.67,0.00023584,3]
[357858063,1744476638390,-410.36019239,0.00023585,2]
[357858065,1744476638400,-500.0,0.00023585,2]
[357858067,1744476638409,-903.03272057,0.00023585,2]
[357858069,1744476638419,-500.0,0.00023585,2]
[357858071,1744476638429,-500.0,0.00023585,2]
[357858073,1744476638438,-500.0,0.00023585,2]
[357858075,1744476638449,-162.06569317,0.00023585,2]
[357858077,1744476638459,-500.0,0.00023585,2]
[357858080,1744476638469,-903.03272057,0.00023585,2]
[357858082,1744476638480,-290.98966425,0.00023585,2]
[357858084,1744476638490,-500.0,0.00023585,2]
[357858086,1744476638500,-500.0,0.00023585,2]
[357858088,1744476638509,-903.03272057,0.00023585,2]
[357858090,1744476638519,-500.0,0.00023585,2]
[357858092,1744476638529,-903.03272057,0.00023585,2]
[357858094,1744476638539,-500.0,0.00023585,2]
[357858096,1744476638550,-500.0,0.00023585,2]
[357858098,1744476638561,-903.03272057,0.00023585,2]
[357858100,1744476638571,-605.98742835,0.00023585,2]
[357858102,1744476638582,-500.0,0.00023585,2]
[357858104,1744476638593,-903.03272057,0.00023585,2]
[357858106,1744476638603,-903.03272057,0.00023585,2]
[357858108,1744476638615,-903.03272057,0.00023585,2]
[357858111,1744476638626,-500.0,0.00023585,2]
[357858114,1744476638650,-500.0,0.00023585,2]
[357858116,1744476638661,-903.03272057,0.00023585,2]
[357858118,1744476638672,-500.0,0.00023585,2]
[357858120,1744476638683,-903.03272057,0.00023585,2]
[357858122,1744476638694,-500.0,0.00023585,2]
[357858124,1744476638705,-903.03272057,0.00023585,2]
[357858126,1744476638714,-903.03272057,0.00023585,2]
[357858129,1744476638725,-500.0,0.00023585,2]
[357858131,1744476638738,-903.03272057,0.00023585,2]
[357858133,1744476638757,-903.03272057,0.00023585,2]
[357858135,1744476638768,-500.0,0.00023585,2]
[357858137,1744476638779,-903.03272057,0.00023585,2]
[357858139,1744476638792,-500.0,0.00023585,2]
[357858141,1744476638806,-500.0,0.00023585,2]
[357858143,1744476638818,-903.03272057,0.00023585,2]
[357858145,1744476638828,-500.0,0.00023585,2]
[357858147,1744476638838,-903.03272057,0.00023585,2]
[357858150,1744476638849,-500.0,0.00023585,2]
[357858152,1744476638859,-903.03272057,0.00023585,2]
[357858154,1744476638869,-500.0,0.00023585,2]
[357858156,1744476638880,-903.03272057,0.00023585,2]
[357858158,1744476638893,-903.03272057,0.00023585,2]
[357858160,1744476638904,-500.0,0.00023585,2]
[357858162,1744476638914,-903.03272057,0.00023585,2]
[357858164,1744476638924,-903.03272057,0.00023585,2]
[357858166,1744476638935,-500.0,0.00023585,2]
[357858168,1744476638945,-903.03272057,0.00023585,2]
[357858170,1744476638955,-903.03272057,0.00023585,2]
[357858172,1744476638966,-500.0,0.00023585,2]
[357858174,1744476638976,-903.03272057,0.00023585,2]
[357858176,1744476638986,-903.03272057,0.00023585,2]
[357858178,1744476638997,-903.03272057,0.00023585,2]
[357858181,1744476639008,-903.03272057,0.00023585,2]
[357858183,1744476639018,-500.0,0.00023585,2]
[357858185,1744476639028,-903.03272057,0.00023585,2]
[357858187,1744476639039,-903.03272057,0.00023585,2]
[357858189,1744476639050,-903.03272057,0.00023585,2]
[357858191,1744476639060,-500.0,0.00023585,2]
[357858194,1744476639071,-903.03272057,0.00023585,2]
[357858196,1744476639081,-903.03272057,0.00023585,2]
[357858198,1744476639091,-903.03272057,0.00023585,2]
[357858200,1744476639102,-903.03272057,0.00023585,2]
[357858202,1744476639112,-903.03272057,0.00023585,2]
[357858204,1744476639123,-903.03272057,0.00023585,2]
[357858206,1744476639133,-903.03272057,0.00023585,2]
[357858208,1744476639142,-500.0,0.00023585,2]
[357858210,1744476639152,-903.03272057,0.00023585,2]
[357858213,1744476639163,-903.03272057,0.00023585,2]
[357858215,1744476639173,-903.03272057,0.00023585,2]
[357858217,1744476639183,-903.03272057,0.00023585,2]
[357858219,1744476639193,-633.26735315,0.00023585,2]
[357858221,1744476639207,-269.76536742,0.00023585,2]
[357858223,1744476639217,-260.90463258,0.00023585,2]
[357858226,1744476639230,-642.12808799,0.00023585,2]
[357858228,1744476639240,-903.03272057,0.00023585,2]
[357858230,1744476639249,-903.03272057,0.00023585,2]
[357858232,1744476639265,-903.03272057,0.00023585,2]
[357858235,1744476639281,-903.03272057,0.00023585,2]
[357858237,1744476639291,-903.03272057,0.00023585,2]
[357858239,1744476639301,-903.03272057,0.00023585,2]
[357858241,1744476639312,-903.03272057,0.00023585,2]
[357858243,1744476639322,-903.03272057,0.00023585,2]
[357858246,1744476639333,-14.22734333,0.00023585,2]
[357858974,1744476646332,-207.4,0.00023574,2]
[357858976,1744476646343,-151.0,0.00023577,2]
[357858978,1744476646353,-302.0,0.00023577,2]
[357858980,1744476646363,-5477.46730616,0.00023585,2]
[357858982,1744476646372,-888.80537724,0.00023585,2]
[357858984,1744476646382,-903.03272057,0.00023585,2]
[357858986,1744476646392,-903.03272057,0.00023585,2]
[357858988,1744476646402,-903.03272057,0.00023585,2]
[357858990,1744476646411,-903.03272057,0.00023585,2]
[357858992,1744476646421,-903.03272057,0.00023585,2]
[357858994,1744476646430,-348.11070723,0.00023585,2]
[357858996,1744476646440,-903.03272057,0.00023585,2]
[357858998,1744476646449,-903.03272057,0.00023585,2]
[357859000,1744476646459,-903.03272057,0.00023585,2]
[357859002,1744476646470,-538.785,0.00024561,2]
[357859004,1744476646479,-7922.87045311,0.000249,2]
[357859006,1744476646494,-4883.29234824,0.000249,2]
[357859009,1744476646508,-4742.92373971,0.000249,2]
[357859011,1744476646519,-3593.7,0.000249,2]
[357859449,1744477832505,-614.39323356,0.00022022,4]
[357859450,1744477832516,-212.13912152,0.00022022,2]
[357859451,1744477832526,-2279.5780727,0.00022122,2]
[357859452,1744477832537,-1000.0,0.00022233,2]
[357859453,1744477832548,-500.0,0.00022233,2]
[357859454,1744477832558,-250.6305334,0.00022321,2]
[357859455,1744477832568,-250.0,0.00022333,2]
[357859456,1744477832578,-549.684785,0.00022461,2]
[357859457,1744477832589,-1779.3636812,0.00022477,2]
[357859458,1744477832599,-300.0,0.00023384,2]
[357859459,1744477832610,-151.0,0.00023472,2]
[357859460,1744477832620,-207.4,0.00023472,2]
[357859461,1744477832631,-500.0,0.00023473,2]
[357859462,1744477832642,-500.0,0.00023485,2]
[357859463,1744477832652,-500.0,0.00023485,2]
[357859464,1744477832663,-219.00602481,0.00023485,2]
[357859465,1744477832673,-500.0,0.00023485,2]
[357859466,1744477832683,-151.0,0.00023485,2]
[357859467,1744477832693,-500.0,0.00023485,2]
[357859468,1744477832704,-500.0,0.00023485,2]
[357859469,1744477832715,-500.0,0.00023485,2]
[357859470,1744477832725,-493.99705109,0.00023485,2]
[357859471,1744477832735,-208.6598157,0.00023485,2]
[357859472,1744477832745,-500.0,0.00023485,2]
[357859473,1744477832757,-500.0,0.00023485,2]
[357859474,1744477832767,-500.0,0.00023485,2]
[357859475,1744477832777,-500.0,0.00023485,2]
[357859476,1744477832786,-500.0,0.00023485,2]
[357859477,1744477832796,-500.0,0.00023485,2]
[357859478,1744477832806,-500.0,0.00023485,2]
[357859479,1744477832817,-500.0,0.00023485,2]
[357859480,1744477832827,-500.0,0.00023485,2]
[357859481,1744477832838,-500.0,0.00023485,2]
[357859482,1744477832848,-500.0,0.00023485,2]
[357859483,1744477832858,-500.0,0.00023485,2]
[357859484,1744477832868,-500.0,0.00023485,2]
[357859485,1744477832879,-500.0,0.00023485,2]
[357859486,1744477832889,-500.0,0.00023485,2]
[357859487,1744477832899,-500.0,0.00023485,2]
[357859488,1744477832909,-500.0,0.00023485,2]
[357859490,1744477833211,-500.0,0.00023485,2]
[357859491,1744477833223,-500.0,0.00023485,2]
[357859492,1744477833234,-500.0,0.00023485,2]
[357859493,1744477833245,-500.0,0.00023485,2]
[357859494,1744477833256,-500.0,0.00023485,2]
[357859495,1744477833266,-500.0,0.00023485,2]
[357859496,1744477833277,-500.0,0.00023485,2]
[357859497,1744477833287,-500.0,0.00023485,2]
[357859498,1744477833302,-500.0,0.00023485,2]
[357859499,1744477833317,-500.0,0.00023485,2]
[357859500,1744477833328,-500.0,0.00023485,2]
[357859501,1744477833339,-500.0,0.00023485,2]
[357859502,1744477833349,-500.0,0.00023485,2]
[357859503,1744477833359,-500.0,0.00023485,2]
[357859504,1744477833370,-500.0,0.00023485,2]
[357859505,1744477833380,-500.0,0.00023485,2]
[357859506,1744477833392,-500.0,0.00023485,2]
[357859507,1744477833403,-500.0,0.00023485,2]
[357859508,1744477833414,-500.0,0.00023485,2]
[357859509,1744477833425,-500.0,0.00023485,2]
[357859510,1744477833435,-500.0,0.00023485,2]
[357859511,1744477833445,-500.0,0.00023485,2]
[357859512,1744477833455,-500.0,0.00023485,2]
[357859513,1744477833466,-500.0,0.00023485,2]
[357859514,1744477833476,-500.0,0.00023485,2]
[357859515,1744477833487,-500.0,0.00023485,2]
[357859516,1744477833497,-500.0,0.00023485,2]
[357859517,1744477833507,-500.0,0.00023485,2]
[357859518,1744477833517,-500.0,0.00023485,2]
[357859519,1744477833526,-500.0,0.00023485,2]
[357859520,1744477833537,-500.0,0.00023485,2]
[357859521,1744477833548,-500.0,0.00023485,2]
[357859522,1744477833558,-500.0,0.00023485,2]
[357859523,1744477833569,-500.0,0.00023485,2]
[357859524,1744477833579,-500.0,0.00023485,2]
[357859525,1744477833589,-500.0,0.00023485,2]
[357859526,1744477833599,-500.0,0.00023485,2]
[357859527,1744477833610,-500.0,0.00023485,2]
[357859528,1744477833620,-500.0,0.00023485,2]
[357859529,1744477833630,-500.0,0.00023485,2]
[357859530,1744477833641,-500.0,0.00023485,2]
[357859531,1744477833650,-500.0,0.00023485,2]
[357859532,1744477833661,-500.0,0.00023485,2]
[357859533,1744477833671,-500.0,0.00023485,2]
[357859534,1744477833682,-500.0,0.00023485,2]
[357859535,1744477833692,-500.0,0.00023485,2]
[357859536,1744477833703,-500.0,0.00023485,2]
[357859537,1744477833713,-500.0,0.00023485,2]
[357859538,1744477833723,-500.0,0.00023485,2]
[357859539,1744477833733,-500.0,0.00023485,2]
[357859540,1744477833743,-500.0,0.00023485,2]
[357859541,1744477833753,-500.0,0.00023485,2]
[357859542,1744477833764,-187.07055426,0.00023485,2]
[357859576,1744477838519,-1140.62,0.00023476,3]
[357859578,1744477838529,-312.92944574,0.00023485,2]
[357859580,1744477838539,-500.0,0.00023485,2]
[357859583,1744477838549,-176.23349991,0.00023485,2]
[357859585,1744477838559,-500.0,0.00023485,2]
[357859587,1744477838570,-500.0,0.00023485,2]
[357859589,1744477838580,-500.0,0.00023485,2]
[357859591,1744477838591,-500.0,0.00023485,2]
[357859593,1744477838600,-300.0,0.00023485,2]
[357859595,1744477838610,-531.75838867,0.00023486,2]
[357859597,1744477838623,-951.00955779,0.00023486,2]
[357859599,1744477838635,-1436.88522029,0.00023486,2]
[357859601,1744477838647,-7032.61754214,0.00023486,2]
[357859603,1744477838659,-3681.66136956,0.00023486,2]
[357859784,1744477840707,-8470.0,0.00023486,2]
[357859786,1744477840719,-13157.905602,0.00023486,2]
[357860099,1744477843498,-2875.02822928,0.00023486,2]
[357860415,1744477846494,-1694.71,0.00023486,2]
[357861016,1744477859042,200.0,0.00027,30]
[357861018,1744478160532,-402.0,0.00021922,2]
[357861019,1744478163242,-294.09806958,0.00021922,2]
[357861024,1744478652675,-186.4443479,0.00021922,2]
[357861042,1744479019777,-117.45758252,0.00021922,2]
[357861043,1744479019801,-138.33541748,0.0002248,2]
[357861044,1744479021016,-237.12464352,0.0002248,2]
[357861045,1744479021039,-7.08235648,0.00022641,2]
[357861046,1744479026186,-157.93148628,0.00022641,2]
[357861062,1744479032646,-24.91019681,0.00022641,2]
[357861064,1744479032656,-321.5118608,0.00022741,2]
[357861066,1744479032667,-1036.99759258,0.00023386,2]
[357861067,1744479032680,-339.6479269,0.00024152,2]
[357861068,1744479032689,-240.44914382,0.00024235,2]
[357861070,1744479032705,-59.55085618,0.00024235,2]
[357861072,1744479032715,-12541.95421053,0.00024236,2]
[357861073,1744479032726,-419.80094169,0.00024236,2]
[357861074,1744479032736,-160.0,0.00024237,2]
[357861075,1744479032750,-838.16197378,0.00024237,2]
[357861076,1744479032760,-160.0,0.00024239,2]
[357861077,1744479032769,-171.19814605,0.00024254,2]
[357861079,1744479032778,-207.4,0.00024426,2]
[357861081,1744479032788,-543.0,0.00024441,2]
[357861082,1744479032797,-706.0,0.00024441,2]
[357861083,1744479032807,-2250.0,0.00024441,2]
[357861084,1744479032817,-402.0,0.00024441,2]
[357861086,1744479032826,-152.0,0.00024533,2]
[357861088,1744479032836,-150.119,0.00024561,2]
[357861090,1744479032845,-160.0,0.00024579,2]
[357861092,1744479032854,-160.0,0.00024579,2]
[357861094,1744479032864,-318.0,0.00024673,3]
[357861096,1744479032873,-154.431,0.00024681,2]
[357861098,1744479032884,-246.67,0.00024681,2]
[357861100,1744479032894,-255.793,0.00024681,2]
[357861102,1744479032904,-188.038,0.00024681,2]
[357861104,1744479032914,-153.103,0.000248,8]
[357861105,1744479032924,-1002.3678805,0.00024889,2]
[357861106,1744479032934,-180.12608826,0.00024899,2]
[357861108,1744479032944,-419.80094169,0.000249,3]
[357861109,1744479032953,-1529.37165305,0.000249,2]
[357861111,1744479032963,-200.56256579,0.000249,2]
[357861112,1744479032972,-500.0,0.000249,2]
[357861114,1744479032982,-3749.89913728,0.000249,5]
[357861115,1744479032991,-500.0,0.00024973,2]
[357861117,1744479033000,-500.0,0.00024973,2]
[357861119,1744479033010,-500.0,0.00024973,2]
[357861120,1744479033020,-500.0,0.00024973,2]
[357861122,1744479033030,-500.0,0.00024973,2]
[357861123,1744479033040,-3385.81752817,0.00025,2]
[357861125,1744479033049,-11278.14436858,0.00025,3]
[357861126,1744479033059,-3808.88092599,0.00025,2]
[357861128,1744479033069,-7000.0,0.00025,2]
[357861129,1744479033079,-67193.55247038,0.00025,2]
[357861130,1744479033091,-4501.19104442,0.00025,2]
[357861131,1744479033128,-28105.2564852,0.00025,2]
[357861132,1744479033138,-3213.82472564,0.00025,2]
[357861133,1744479033148,-3749.8991371,0.00025417,6]
[357861134,1744479033158,-500.0,0.00025448,2]
[357861135,1744479033167,-215.0738,0.00025795,2]
[357861136,1744479033178,-3749.8991371,0.00025934,6]
[357861137,1744479033187,-536.51387392,0.00025973,2]
[357861138,1744479033197,-500.0,0.00025973,2]
[357861139,1744479033207,-500.0,0.00025973,2]
[357861140,1744479033217,-500.0,0.0002598,2]
[357861141,1744479033227,-151.0,0.0002598,2]
[357861142,1744479033236,-500.0,0.0002598,2]
[357861143,1744479033246,-226.03002128,0.00025989,2]
[357861144,1744479033256,-500.0,0.00025989,2]
[357861145,1744479033266,-622.31544062,0.00025989,2]
[357861146,1744479033276,-500.0,0.00025989,2]
[357861147,1744479033286,-160.0,0.0002599,3]
[357861148,1744479033296,-838.16197378,0.0002599,3]
[357861149,1744479033306,-160.0,0.0002599,3]
[357861150,1744479033316,-160.0,0.0002599,3]
[357861151,1744479033326,-79348.9105145,0.0002599,2]
[357861152,1744479033522,-300.0,0.00024999,2]
[357861198,1744479038797,-300.0,0.00024253,2]
[357861200,1744479038807,-200.0,0.00024999,2]
[357861202,1744479038818,-500.0,0.00024999,2]
[357861204,1744479038827,-500.0,0.00024999,2]
[357861206,1744479038838,-500.0,0.00024999,2]
[357861209,1744479038848,-86.2,0.00024999,2]
[357861213,1744479038883,-300.0,0.00024999,2]
[357861661,1744479043626,-113.8,0.00024999,2]
[357861663,1744479043636,-178.51767493,0.00024999,2]
[357861668,1744479043685,-321.48232507,0.00024999,2]
[357861681,1744479043975,-500.0,0.00024999,2]
[357861682,1744479043985,-500.0,0.00024999,2]
[357861683,1744479043995,-500.0,0.00024999,2]
[357861684,1744479044005,-500.0,0.00024999,2]
[357861685,1744479044014,-500.0,0.00024999,2]
[357861686,1744479044023,-500.0,0.00024999,2]
[357861687,1744479044032,-354.08440415,0.00024999,2]
[357861688,1744479044042,-500.0,0.00024999,2]
[357861689,1744479044052,-500.0,0.00024999,2]
[357861690,1744479044062,-500.0,0.00024999,2]
[357861691,1744479044071,-500.0,0.00024999,2]
[357861692,1744479044081,-500.0,0.00024999,2]
[357861693,1744479044090,-500.0,0.00024999,2]
[357861694,1744479044100,-483.73837083,0.00024999,2]
[357861695,1744479044109,-500.0,0.00024999,2]
[357861696,1744479044119,-234.19489898,0.00024999,2]
[357861734,1744479044515,-265.80510102,0.00024999,2]
[357861738,1744479044541,-55.67722405,0.00024999,2]
[357861863,1744479045773,-151.0,0.00026,7]
[357861867,1744479045799,-27.51767493,0.00026,7]
[357861971,1744479046726,-444.32277595,0.00024999,2]
[357861973,1744479046736,-500.0,0.00024999,2]
[357861975,1744479046747,-500.0,0.00024999,2]
[357861978,1744479046758,-500.0,0.00024999,2]
[357861980,1744479046768,-500.0,0.00024999,2]
[357861982,1744479046778,-500.0,0.00024999,2]
[357861984,1744479046788,-1263.39,0.0002598,3]
[357861986,1744479046798,-54486.38696099,0.0002599,2]
[357861988,1744479046810,-4200.0,0.0002599,2]
[357861990,1744479046822,-5548.77062333,0.0002599,2]
[357861993,1744479046835,-7750.0,0.0002599,2]
[357861995,1744479046847,-1252.33064197,0.0002599,2]
[357862000,1744479046893,-3715.24339709,0.0002599,2]
[357862393,1744479050951,-189.92403957,0.00024137,2]
[357862396,1744479050974,-2.65881167,0.00024642,2]
[357862779,1744479054615,-254.7359452,0.0002521,4]
[357863053,1744479067930,-404.22733198,0.00024642,2]
[357863055,1744479085639,-473.79,0.0002598,3]
[357863056,1744479087645,-157.9,0.0002598,3]
[357863057,1744479088927,-151.0,0.0002599,7]
[357863058,1744479090759,-151.0,0.0002599,7]
[357863059,1744479094216,-151.0,0.00026,7]
[357863060,1744479099521,-187.730031,0.00023356,2]
[357863061,1744479099545,-136.11385635,0.00024642,2]
[357863062,1744479099568,-706.0,0.00024642,2]
[357863063,1744479099591,-402.0,0.00024642,2]
[357863064,1744479099614,-2250.0,0.00024642,2]
[357863065,1744479099636,-838.16197378,0.00024642,2]
[357863066,1744479099663,-500.0,0.00024999,2]
[357863067,1744479099687,-191.0519589,0.0002521,4]
[357863068,1744479099712,-2007.51118686,0.00025889,2]
[357863069,1744479100813,-4.942086,0.00026,7]
[357863070,1744479100837,-146.057914,0.00026,7]
[357863071,1744479101399,-191.0519589,0.00025889,2]
[357863072,1744479112564,-166.4509017,0.00022641,2]
[357863073,1744479119011,-250.0,0.00022641,2]
[357863074,1744479123260,-300.0,0.00022641,2]
[357863075,1744479135180,-283.5490983,0.00022641,2]
[357863076,1744479135205,-16.4509017,0.00024641,2]
[357863081,1744479232899,-244.47462911,0.00022641,2]
[357863155,1744480058946,2944.87039148,0.00025,10]
[357863159,1744480231695,-203.912275,0.00023673,2]
[357863160,1744480231705,-250.0,0.00023851,2]
[357863161,1744480231716,-166.4509017,0.00024358,2]
[357863162,1744480231738,-300.0,0.0002453,2]
[357863163,1744480231750,-1.15033138,0.00024531,2]
[357863164,1744480231764,-158.84966862,0.00024531,2]
[357863165,1744480231774,-2101.25512277,0.00024531,2]
[357863166,1744480231787,-1103.26624903,0.00024531,2]
[357863167,1744480231799,-407.96641018,0.00024531,2]
[357863169,1744480231812,-7313.04860769,0.00024531,2]
[357863227,1744480237802,-500.0,0.00024531,2]
[357863234,1744480237858,-1116.41782086,0.00024531,2]
[357863236,1744480237870,-250.0,0.00024535,2]
[357863239,1744480237881,-160.0,0.00024537,2]
[357863241,1744480237891,-300.0,0.00024543,2]
[357863243,1744480237907,-837.59699578,0.0002457,2]
[357863245,1744480237918,-468.668,0.00024642,2]
[357863247,1744480237928,-543.0,0.00024642,2]
[357863249,1744480237938,-1248.45718331,0.00024642,2]
[357863251,1744480237951,-1001.54281669,0.00024642,2]
[357863253,1744480237962,-500.0,0.0002465,2]
[357863255,1744480237972,-500.0,0.0002465,2]
[357863257,1744480237982,-500.0,0.0002465,2]
[357863260,1744480237992,-500.0,0.0002465,2]
[357863262,1744480238002,-9246.7983715,0.00024685,2]
[357863264,1744480238013,-153.103,0.00024691,7]
[357863266,1744480238023,-2460.70426036,0.000248,2]
[357863268,1744480238039,-180.1278908,0.00024899,2]
[357863271,1744480238050,-3374.90922339,0.000249,5]
[357863273,1744480238065,-1000.0,0.00025198,2]
[357863275,1744480238075,-191.0519589,0.0002521,4]
[357863277,1744480238085,-3374.90922339,0.00025417,6]
[357863279,1744480238097,-160.0,0.00025436,2]
[357863281,1744480238107,-10429.159187,0.0002567,3]
[357863283,1744480238118,-160.0,0.0002567,3]
[357863285,1744480238129,-1929.09302369,0.0002567,3]
[357863287,1744480238141,-837.80299543,0.0002567,3]
[357863290,1744480238154,-419.80094169,0.0002567,3]
[357863292,1744480238165,-160.0,0.0002567,3]
[357863294,1744480238175,-160.0,0.0002567,3]
[357863296,1744480238186,-1500.0,0.00025746,2]
[357863298,1744480238196,-1525.47526884,0.00025836,2]
[357863300,1744480238207,-151.0,0.00025864,2]
[357863302,1744480238217,-207.4,0.00025864,2]
[357863305,1744480238228,-158.22101489,0.00025868,2]
[357863307,1744480238239,-500.0,0.00025868,2]
[357863309,1744480238249,-500.0,0.00025868,2]
[357863311,1744480238260,-560.10435964,0.00025868,2]
[357863313,1744480238270,-500.0,0.00025868,2]
[357863315,1744480238281,-407.13523029,0.00025868,2]
[357863317,1744480238291,-500.0,0.00025868,2]
[357863319,1744480238301,-500.0,0.00025868,2]
[357863322,1744480238312,-500.0,0.00025868,2]
[357863324,1744480238322,-500.0,0.00025868,2]
[357863326,1744480238332,-500.0,0.00025868,2]
[357863328,1744480238342,-500.0,0.00025868,2]
[357863330,1744480238352,-500.0,0.00025868,2]
[357863332,1744480238362,-500.0,0.00025868,2]
[357863334,1744480238372,-1692.90876409,0.00025869,2]
[357863336,1744480238383,-11407.67859429,0.00025869,3]
[357863338,1744480238393,-8177.21385641,0.00025869,2]
[357863341,1744480238409,-500.0,0.00025869,2]
[357863343,1744480238422,-4784.54118444,0.00025869,2]
[357863345,1744480238434,-12534.80981578,0.00025869,2]
[357863443,1744480239400,-200.0,0.00025934,6]
[357863564,1744480240767,-700.0,0.00025869,2]
[357863589,1744480241039,-341.973,0.00025869,2]
[357863592,1744480241055,-110133.74057781,0.00025869,2]
[357863838,1744480243282,-402.0,0.00024642,2]
[357863841,1744480243292,-1046.66795218,0.00025869,2]
[357863847,1744480243336,-142627.8151011,0.00025869,2]
[357864153,1744480246187,-20357.65868928,0.00025869,2]
[357864155,1744480246198,-1094.6196278,0.00025879,2]
[357864159,1744480246230,-1639.99999998,0.00025879,2]
[357864286,1744480247475,-188.05621933,0.00025879,3]
[357864567,1744480251670,-250.0,0.0002574,2]
[357864578,1744480258158,-287.92514838,0.00025879,3]
[357864580,1744480269188,-300.0,0.00025879,3]
[357864581,1744480274038,-237.0,0.00025739,2]
[357864582,1744480274062,-134.73449035,0.0002574,2]
[357864583,1744480291496,-157.0039481,0.0002521,4]
[357864584,1744480291519,-142.9960519,0.00025879,3]
[357864585,1744480297825,-157.0039481,0.00025879,3]
[357864586,1744480306325,-176.50603043,0.00023573,2]
[357864587,1744480319981,-73.49396957,0.00023573,2]
[357864588,1744480320006,-95.11081885,0.00025,2]
[357864589,1744480323706,-300.0,0.00023573,2]
[357864590,1744480328495,-168.96331788,0.00023573,2]
[357864591,1744480337170,-300.0,0.00023573,2]
[357864592,1744480343532,-159.1779977,0.00023573,2]
[357864593,1744480351600,-155.60123545,0.00023573,2]
[357864594,1744480356266,-135.22076685,0.00023573,2]
[357864595,1744480356290,-28.97253315,0.00023573,2]
[357864596,1744480383412,-166.952271,0.00023573,2]
[357864597,1744480389833,-415.70832205,0.00023573,2]
[357864598,1744480389857,-62.51297471,0.00023999,2]
[357864599,1744480401366,-216.42793185,0.00023999,2]
[357864600,1744480407093,-21.05909344,0.00023999,2]
[357864601,1744480407119,-211.19586259,0.00024,2]
[357864602,1744480416298,-202.461976,0.00023573,2]
[357864603,1744480421462,-47.538024,0.00023573,2]
[357864604,1744480421488,-252.461976,0.00024,2]
[357864605,1744480427448,-159.1779977,0.00024,2]
[357864606,1744480438325,-268.0285487,0.00024,2]
[357864607,1744480444738,-188.12947469,0.00023973,2]
[357864608,1744480449854,-287.1933,0.00023973,2]
[357864609,1744480457320,-206.91090473,0.0002399,3]
[357864610,1744480462139,-24.67722531,0.00023973,2]
[357864611,1744480462162,-174.6144414,0.0002399,3]
[357864612,1744480468384,-250.0,0.0002399,3]
[357864613,1744480476186,-200.0,0.00023,2]